Workbook

Sheet How to Use This Tool
A6: How to Use the CSRHub SASB Calculator - Auto Industry | I6: SASB for Auto Industry Materiality Threshold Control
I7: Customize your SASB Materiality Level | J7: 0.83
A8: Background | I8: SASB Compliance Results for Auto Industry
A9: SASB (The Sustainability Accounting Standards Board), founded in 2011, created a framework for disclosing financially material ESG factors specific to 77 industries. Its standards help companies report sustainability issues that directly affect financial performance. In 2021, SASB merged into the ISSB to support a global baseline for sustainability reporting. | I9: Company Name | J9: Materials Efficiency & Recycling | K9: Product Safety | L9: Labor Practices (Labor Relations) | M9: Fuel Economy and Use-phase Emissions | N9: Materials Sourcing (including critical materials)
I10: ='SASB Score Overview'!A15 -> Tesla Motors, Inc. | J10: ='SASB Score Overview'!C15 -> 49.657 | K10: ='SASB Score Overview'!D15 -> 48.622 | L10: ='SASB Score Overview'!E15 -> 45.0184 | M10: ='SASB Score Overview'!F15 -> 50.12 | N10: ='SASB Score Overview'!G15 -> 49.1455
I11: Comparator Average | J11: ='SASB Score Overview'!C10 -> 60.52665 | K11: ='SASB Score Overview'!D10 -> 57.3912 | L11: ='SASB Score Overview'!E10 -> 56.90375 | M11: ='SASB Score Overview'!F10 -> 59.19735 | N11: ='SASB Score Overview'!G10 -> 59.20795
I12: Materiality Test | J12: =IF(J10<J11*$J$7,"Below","Pass") -> Below | K12: =IF(K10<K11*$J$7,"Below","Pass") -> Pass | L12: Below | M12: Pass | N12: Pass
A14: 5 Dimensions Across Industries Have Been Mapped to ESG Topics
A15: SASB identified five broad dimensions across 77 industries, then selected the most relevant topcs within the dimensions to ensure disclosures focus on material risks and opportunities. We have mapped the relevant 10 metrics for the Automobile Standard across the 5 different disclosure topics to the 12 sustainability-related topics that CSRHub rates. The mapping for Auto industry is shown on the SASB Mapping tab.
A19: The Enter Company Names Tab
A20: This tab is the starting point. It allows you search the names of the companies you wish to evaluate. Please enter in the date of data you are wanting to evaluate. You can verify the company name in column J. The instructions for matching the correct entity can be found in cells A4-A10.
A24: The SASB Score Overview Tab
A25: This tab contains an estimate of the relative performance for the studied companies across the 5 broad areas and topics specific to the Auto industry. The "focus company" is the top and the "comparators" are below it. The average, best, and worst ratings numbers at the top of the sheet reference the comparators. The focus company is excluded.
A29: The CSRHub Ratings Tab
A30: Confirm the date is correct and that it pulled from the Enter Company Names tab when you click "Calculate." The "focus company" is the top and the "comparators" are below it. The comparators average, best and worst ratings are listed at the top of the sheet. The focus company is excluded
D33: .
A34: Set Your Threshold for Materiality and Use the Tool
A35: To the right at the top of this page is a cell to "Customize your SASB Materiality Level" for this tool. If you want to test if the focus company is in line with the average for its comparators, set the threshold at 100%. If you would accept the focus company being a certain percent below the average for SASB in this industry, set the threshold at the desired percentage and click Calculate. To the right of these instructions, you will see a group of comparisons between the focus company and the average of the comparators. When the focus company fails to meet the threshold you set, you will see a flag that says "Below." When it meets the threshold, the flag will say "Pass."
A44: What to Do, Next?
A45: When the focus company appears likely to fail the materiality test for a particular SASB area, it should consider taking steps to rectify this issue. These steps could include:
A48: 1. Improve policies and practices in the area of concern.
A49: 2. Gather more data to allow better understanding of performance in this area.
A50: 3. Improve reporting to raings groups and share relevant indicators.
A53: CSRHub's ratings are based on the views of hundreds of ratings groups. These groups typically rely on both formal and informal reporting from the entities they cover plus their own internal analysis techniques and models. If necessary, CSRHub can supply additional reports and tools to help improve reporting and strength an entity's engagement with rating sources.
A59: For more information on CSRHub’s methodology, please see www.csrhub.com/csrhub-esg-ratings-methodology.

Sheet Enter Company Names
R1: Controls for Fine Tuning Scope of Search
U2: Name | V2: Ticker | W2: URL | X2: ISIN
A3: Enter The Company Or Companies You Want To Study | N3: NA = Rating or information not available. This can also be due to a company with only partial ratings. We do not provide an overall score for partially rated companies. | R3: Set to include (I) or exclude (X) fully rated, partially rated and/or unrated companies from your search | T3: Fully Rated | U3: I | V3: I | W3: I | X3: I
A4: 1. Enter a company name, part of a company name, or a brand in column B, a ticker into column C, a web URL into column D, and/or an ISIN number into column E. | T4: Partially Rated | U4: I | V4: I | W4: I | X4: I
A5: 2. If the CSRHub name you want does not appear in column J, use the CSRHub name lookup tool (top menu, CSRHub…Company) to paste the right text company name into column J. | T5: Not Rated | U5: I | V5: I | W5: I | X5: I
A6: 3. The data in columns K to Q should help you double check that you have the right name match. The name in column J is the one used automatically on other sheets. | O6: Version: | P6: =CSRHubAPIVersionNumber() -> 3.3 | R6: Changes in the settings above will change the search parameter in cells F13-I13
A7: 4. If you need to lookup more than 30 companies, you can copy the formulas in row 44 down as far as you wish. | O7: Last Content Update: | P7: 2026-03-26
A8: 5. Use column A to store your internal identifier or version of the company name for later reference. You can change the scope of search using the box starting in column R. | O8: Last Code Update: | P8: =CSRHubAPIVersionDate() -> 2025-12-25 | S8: Month | T8: Year
A9: 6. Request a specific Month and Year of data, in cells S9 and T9. Choose Formulas from the top menu, then Calculate Sheet. This will allow our database to update the sheet. | O9: Includes MonetDB Mac Update | R9: Data Date | S9: February | T9: 2026
A10: 7. Enter your CSRHub site credentials (username/password) when directed.
A13: Top Line Summary | C13: =COUNT(N15:N500) & " Companies" -> 11 Companies | E13: Search scope parameters (see Column P) | F13: =IF(AND(U3="I",U4="I",U5="I"),"0",IF(AND(U3="I",U4="X",U5="X"),"1",IF(AND(U3="I",U4="I",U5="X"),"2",IF(AND(U3="X",U4="I",U5="X"),"3",IF(AND(U3="X",U4="X",U5="I"),"4",IF(AND(U3="X",U4="I",U5="I"),"5",IF(AND(U3="I",U4="X",U5="I"),"6","0"))))))) -> 0 | G13: =IF(AND(V3="I",V4="I",V5="I"),"0",IF(AND(V3="I",V4="X",V5="X"),"1",IF(AND(V3="I",V4="I",V5="X"),"2",IF(AND(V3="X",V4="I",V5="X"),"3",IF(AND(V3="X",V4="X",V5="I"),"4",IF(AND(V3="X",V4="I",V5="I"),"5",IF(AND(V3="I",V4="X",V5="I"),"6","0"))))))) -> 0 | H13: 0 | I13: 0 | J13: More instructions and examples are available online. | K13: Ways to Double Check the Name
A14: Internal ID (Optional) | B14: Enter Name | C14: Enter Ticker (No exchange code) | D14: Enter web URL | E14: Enter ISIN | F14: Simple Lookup (NA or blank = didn't work) | G14: Ticker Lookup (NA or blank = didn't work) | H14: URL Lookup (NA or blank = didn't work) | I14: ISIN Lookup (NA or blank = didn't work) | J14: Best Guess (replace using name lookup tool when NA) | K14: Country | L14: City | M14: Ticker | N14: # of Sources | O14: ISIN | P14: Industry | Q14: Overall Ratings
B15: Tesla Motors, Inc. | F15: =csrhubfindcompanyname($B15,0,F$13) -> Tesla Motors, Inc. | G15: =csrhubfindcompanyname($C15,3,G$13) -> NA | H15: =csrhubfindcompanyname($D15,5,H$13) -> NA | I15: =csrhubfindcompanyname($E15,4,I$13) -> NA | J15: =IF(I15="NA",IF(H15="NA",IF(F15="NA",IF(G15= "NA","NA",G15),F15),H15),I15) -> Tesla Motors, Inc. | K15: =csrhubcompanycountry(J15) -> USA | L15: =CSRHubCompanycity(J15) -> Palo Alto | M15: =CSRHubCompanyTicker(J15) -> TSLA | N15: =CSRHubDScount(J15) -> 66 | O15: =csrhubcompanyisin(J15) -> US88160R1014 | P15: =CSRHubCompanyIndustry(J15) -> Motor Vehicle Manufacturing | Q15: =CSRHubRating(J15) -> 47.5001
B16: Audi AG | F16: =csrhubfindcompanyname($B16,0,F$13) -> Audi AG | G16: NA | H16: NA | I16: NA | J16: Audi AG | K16: =csrhubcompanycountry(J16) -> Germany | L16: =CSRHubCompanycity(J16) -> Ingolstadt | M16: =CSRHubCompanyTicker(J16) -> NSU | N16: =CSRHubDScount(J16) -> 11 | O16: =csrhubcompanyisin(J16) -> DE0006757008 | P16: =CSRHubCompanyIndustry(J16) -> Motor Vehicle Manufacturing | Q16: =CSRHubRating(J16) -> 61.2742
B17: BMW | F17: BMW | G17: NA | H17: NA | I17: NA | J17: BMW | K17: =csrhubcompanycountry(J17) -> Germany | L17: Munich | M17: BMW | N17: 57 | O17: DE0005190003 | P17: Motor Vehicle Manufacturing | Q17: 59.6044
B18: Ford Motor Company | F18: Ford Motor Company | G18: NA | H18: NA | I18: NA | J18: Ford Motor Company | K18: USA | L18: Dearborn | M18: F | N18: 75 | O18: US3453708600 | P18: Motor Vehicle Manufacturing | Q18: 60.0919
B19: HONDA MOTOR CO.,LTD. | F19: HONDA MOTOR CO.,LTD. | G19: NA | H19: NA | I19: NA | J19: HONDA MOTOR CO.,LTD. | K19: Japan | L19: Minato-ku | M19: 7267 | N19: 57 | O19: JP3854600008 | P19: Motor Vehicle Manufacturing | Q19: 60.9934
B20: General Motors Corporation (GM) | F20: General Motors Corporation (GM) | G20: NA | H20: NA | I20: NA | J20: General Motors Corporation (GM) | K20: USA | L20: Detroit | M20: GM | N20: 89 | O20: US37045V1008 | P20: Motor Vehicle Manufacturing | Q20: 62.4612
B21: Hyundai Motor Co. | F21: Hyundai Motor Co. | G21: NA | H21: =csrhubfindcompanyname($D21,5,H$13) -> NA | I21: NA | J21: =IF(I21="NA",IF(H21="NA",IF(F21="NA",IF(G21= "NA","NA",G21),F21),H21),I21) -> Hyundai Motor Co. | K21: South Korea | L21: Seoul | M21: 5380 | N21: 51 | O21: KR7005380001 | P21: Motor Vehicle Manufacturing | Q21: 60.0019
B22: Porsche AG | F22: Porsche AG | G22: NA | H22: =csrhubfindcompanyname($D22,5,H$13) -> NA | I22: NA | J22: =IF(I22="NA",IF(H22="NA",IF(F22="NA",IF(G22= "NA","NA",G22),F22),H22),I22) -> Porsche AG | K22: Germany | L22: Stuttgart | M22: DRPRY | N22: 25 | O22: DE000PAG9113 | P22: Motor Vehicle Manufacturing | Q22: 54.0027
B23: Volkswagen AG | F23: Volkswagen AG | G23: NA | H23: NA | I23: NA | J23: Volkswagen AG | K23: Germany | L23: Wolfsburg | M23: VOW3 | N23: 58 | O23: DE0007664039 | P23: Motor Vehicle Manufacturing | Q23: 58.446
B24: SUBARU CORPORATION | F24: SUBARU CORPORATION | G24: NA | H24: NA | I24: NA | J24: SUBARU CORPORATION | K24: Japan | L24: Shinjuku-ku | M24: 7270 | N24: 34 | O24: JP3814800003 | P24: Motor Vehicle Manufacturing | Q24: 60.9969
B25: TOYOTA MOTOR CORPORATION | F25: TOYOTA MOTOR CORPORATION | G25: NA | H25: NA | I25: NA | J25: TOYOTA MOTOR CORPORATION | K25: Japan | L25: Toyota-shi | M25: 7203 | N25: 69 | O25: JP3633400001 | P25: Motor Vehicle Manufacturing | Q25: 61.4842

Sheet CSRHub Ratings
A4: Subcategory Ratings (0-100, 100 = best)
A5: Instructions for CSRHub SASB Calculator (Continued)
A6: 1. The company names will pull from the Enter Company Names tab. Verify date is correct when you click Calculate.
A7: 2. Clear out any old ratings numbers (cell C15-N15 and down). When prompted, click "No" to not delete query.
A8: 3. Go to the CSRHub menu (in the green bar up top) and click on the "Rebuild Data on This Sheet" button. Your sheet will refresh. Then click Calculate.
C9: Community | F9: Employees | I9: Environment | L9: Goverment
A10: Excludes focus company | B10: Average Rating | C10: =AVERAGEIF(C16:C212,"<>NA") -> 57.686 | D10: =AVERAGEIF(D16:D212,"<>NA") -> 59.851 | E10: 57.375 | F10: 57.268 | G10: 57.698 | H10: 55.864 | I10: 58.206 | J10: 61.656 | K10: 62.056 | L10: 56.686 | M10: 55.498 | N10: 57.551
B11: Best Rating | C11: =MAX(C16:C212) -> 60.27 | D11: =MAX(D16:D212) -> 63.48 | E11: 76.03 | F11: 73.98 | G11: 76.91 | H11: 72.94 | I11: 61.94 | J11: 65.34 | K11: 67.52 | L11: 78.98 | M11: 64.87 | N11: 78.11
B12: Worst Rating | C12: =MIN(C16:C212) -> 54.1 | D12: =MIN(D16:D212) -> 52.2 | E12: 51.7 | F12: 50.2 | G12: 51.87 | H12: 50.16 | I12: 49.6 | J12: 51.92 | K12: 51.2 | L12: 48.72 | M12: 50.55 | N12: 50.7
A13: <==DATA PULLS FROM FIRST TAB==>
A14: Internal ID | B14: COMPANY NAME | C14: ="Community Dev & Philanthropy Rating (" & 'Enter Company Names'!$S$9 & " " & 'Enter Company Names'!$T$9 & ")" -> Community Dev & Philanthropy Rating (February 2026) | D14: ="Human Rights & Supply Chain Rating (" & 'Enter Company Names'!$S$9 & " " & 'Enter Company Names'!$T$9 & ")" -> Human Rights & Supply Chain Rating (February 2026) | E14: ="Product Rating (" & 'Enter Company Names'!$S$9 & " " & 'Enter Company Names'!$T$9 & ")" -> Product Rating (February 2026) | F14: ="Compensation & Benefits Rating (" & 'Enter Company Names'!$S$9 & " " & 'Enter Company Names'!$T$9 & ")" -> Compensation & Benefits Rating (February 2026) | G14: ="Diversity & Labor Rights Rating (" & 'Enter Company Names'!$S$9 & " " & 'Enter Company Names'!$T$9 & ")" -> Diversity & Labor Rights Rating (February 2026) | H14: ="Training, Health & Safety Rating (" & 'Enter Company Names'!$S$9 & " " & 'Enter Company Names'!$T$9 & ")" -> Training, Health & Safety Rating (February 2026) | I14: ="Energy & Climate Change Rating (" & 'Enter Company Names'!$S$9 & " " & 'Enter Company Names'!$T$9 & ")" -> Energy & Climate Change Rating (February 2026) | J14: ="Environment Policy & Reporting Rating (" & 'Enter Company Names'!$S$9 & " " & 'Enter Company Names'!$T$9 & ")" -> Environment Policy & Reporting Rating (February 2026) | K14: ="Resource Management Rating (" & 'Enter Company Names'!$S$9 & " " & 'Enter Company Names'!$T$9 & ")" -> Resource Management Rating (February 2026) | L14: ="Board Rating (" & 'Enter Company Names'!$S$9 & " " & 'Enter Company Names'!$T$9 & ")" -> Board Rating (February 2026) | M14: ="Leadership Ethics Rating (" & 'Enter Company Names'!$S$9 & " " & 'Enter Company Names'!$T$9 & ")" -> Leadership Ethics Rating (February 2026) | N14: ="Transparency & Reporting Rating (" & 'Enter Company Names'!$S$9 & " " & 'Enter Company Names'!$T$9 & ")" -> Transparency & Reporting Rating (February 2026)
B15: =IF(AND('Enter Company Names'!J15<>0,'Enter Company Names'!J15<>"NA"),'Enter Company Names'!J15,"") -> Tesla Motors, Inc. | C15: 50.2 | D15: 50.32 | E15: 49.22 | F15: 45.02 | G15: 43.6 | H15: 45.94 | I15: 54.12 | J15: 47.74 | K15: 50.56 | L15: 45.15 | M15: 48.3 | N15: 45.76
B16: =IF(AND('Enter Company Names'!J16<>0,'Enter Company Names'!J16<>"NA"),'Enter Company Names'!J16,"") -> Audi AG | C16: 57.81 | D16: 52.2 | E16: 76.03 | F16: 73.98 | G16: 76.91 | H16: 72.94 | I16: 51.5 | J16: 61.72 | K16: 52.37 | L16: 78.98 | M16: 64.87 | N16: 78.11
B17: =IF(AND('Enter Company Names'!J17<>0,'Enter Company Names'!J17<>"NA"),'Enter Company Names'!J17,"") -> BMW | C17: 57.71 | D17: 61.62 | E17: 55.98 | F17: 56.56 | G17: 56.06 | H17: 53.38 | I17: 61.83 | J17: 63.35 | K17: 64.9 | L17: 51.36 | M17: 53.03 | N17: 53.67
B18: =IF(AND('Enter Company Names'!J18<>0,'Enter Company Names'!J18<>"NA"),'Enter Company Names'!J18,"") -> Ford Motor Company | C18: 58.01 | D18: 62.74 | E18: 53.77 | F18: 55.15 | G18: 55.97 | H18: 52.3 | I18: 61.94 | J18: 65.34 | K18: 66.12 | L18: 57.11 | M18: 55.81 | N18: 57.96
B19: =IF(AND('Enter Company Names'!J19<>0,'Enter Company Names'!J19<>"NA"),'Enter Company Names'!J19,"") -> HONDA MOTOR CO.,LTD. | C19: 58.81 | D19: 63.48 | E19: 56.95 | F19: 58.49 | G19: 56.94 | H19: 55.22 | I19: 60.95 | J19: 64.06 | K19: 67.52 | L19: 57.05 | M19: 57.14 | N19: 57.1
B20: =IF(AND('Enter Company Names'!J20<>0,'Enter Company Names'!J20<>"NA"),'Enter Company Names'!J20,"") -> General Motors Corporation (GM) | C20: 58.83 | D20: 58.65 | E20: 54.59 | F20: 55.97 | G20: 58.2 | H20: 55.2 | I20: 58.15 | J20: 59.39 | K20: 61.61 | L20: 61.62 | M20: 55.56 | N20: 58.75
B21: =IF(AND('Enter Company Names'!J21<>0,'Enter Company Names'!J21<>"NA"),'Enter Company Names'!J21,"") -> Hyundai Motor Co. | C21: 57.59 | D21: 62.83 | E21: 58.61 | F21: 57.04 | G21: 58.18 | H21: 55.94 | I21: 59.41 | J21: 64.77 | K21: 66.63 | L21: 54.78 | M21: 53.71 | N21: 56.59
B22: =IF(AND('Enter Company Names'!J22<>0,'Enter Company Names'!J22<>"NA"),'Enter Company Names'!J22,"") -> Porsche AG | C22: 54.1 | D22: 56.84 | E22: 51.7 | F22: 53.9 | G22: 51.87 | H22: 50.16 | I22: 49.6 | J22: 51.92 | K22: 51.2 | L22: 49.94 | M22: 51.07 | N22: 51.91
B23: =IF(AND('Enter Company Names'!J23<>0,'Enter Company Names'!J23<>"NA"),'Enter Company Names'!J23,"") -> Volkswagen AG | C23: 54.6 | D23: 58.8 | E23: 56.11 | F23: 50.2 | G23: 51.92 | H23: 50.49 | I23: 57.61 | J23: 60.15 | K23: 62.34 | L23: 48.72 | M23: 50.55 | N23: 50.7
B24: =IF(AND('Enter Company Names'!J24<>0,'Enter Company Names'!J24<>"NA"),'Enter Company Names'!J24,"") -> SUBARU CORPORATION | C24: 59.13 | D24: 60.16 | E24: 54.46 | F24: 56.68 | G24: 54.85 | H24: 55.77 | I24: 59.64 | J24: 60.71 | K24: 61.24 | L24: 54.86 | M24: 58.35 | N24: 56.11
B25: =IF(AND('Enter Company Names'!J25<>0,'Enter Company Names'!J25<>"NA"),'Enter Company Names'!J25,"") -> TOYOTA MOTOR CORPORATION | C25: 60.27 | D25: 61.19 | E25: 55.55 | F25: 54.71 | G25: 56.08 | H25: 57.24 | I25: 61.43 | J25: 65.15 | K25: 66.63 | L25: 52.44 | M25: 54.89 | N25: 54.61
A26: =IF(AND('Enter Company Names'!J26<>0,'Enter Company Names'!J26<>"NA"),'Enter Company Names'!J26,"") -> 
A27: =IF(AND('Enter Company Names'!J27<>0,'Enter Company Names'!J27<>"NA"),'Enter Company Names'!J27,"") -> 
A28: =IF(AND('Enter Company Names'!J28<>0,'Enter Company Names'!J28<>"NA"),'Enter Company Names'!J28,"") -> 
A29: =IF(AND('Enter Company Names'!J29<>0,'Enter Company Names'!J29<>"NA"),'Enter Company Names'!J29,"") -> 
A30: =IF(AND('Enter Company Names'!J30<>0,'Enter Company Names'!J30<>"NA"),'Enter Company Names'!J30,"") -> 
A31: =IF(AND('Enter Company Names'!J31<>0,'Enter Company Names'!J31<>"NA"),'Enter Company Names'!J31,"") -> 
A32: =IF(AND('Enter Company Names'!J32<>0,'Enter Company Names'!J32<>"NA"),'Enter Company Names'!J32,"") -> 
A33: =IF(AND('Enter Company Names'!J33<>0,'Enter Company Names'!J33<>"NA"),'Enter Company Names'!J33,"") -> 
A34: =IF(AND('Enter Company Names'!J34<>0,'Enter Company Names'!J34<>"NA"),'Enter Company Names'!J34,"") -> 
A35: =IF(AND('Enter Company Names'!J35<>0,'Enter Company Names'!J35<>"NA"),'Enter Company Names'!J35,"") -> 
A36: =IF(AND('Enter Company Names'!J36<>0,'Enter Company Names'!J36<>"NA"),'Enter Company Names'!J36,"") -> 
A37: =IF(AND('Enter Company Names'!J37<>0,'Enter Company Names'!J37<>"NA"),'Enter Company Names'!J37,"") -> 
A38: =IF(AND('Enter Company Names'!J38<>0,'Enter Company Names'!J38<>"NA"),'Enter Company Names'!J38,"") -> 
A39: =IF(AND('Enter Company Names'!J39<>0,'Enter Company Names'!J39<>"NA"),'Enter Company Names'!J39,"") -> 
A40: =IF(AND('Enter Company Names'!J40<>0,'Enter Company Names'!J40<>"NA"),'Enter Company Names'!J40,"") -> 
A41: =IF(AND('Enter Company Names'!J41<>0,'Enter Company Names'!J41<>"NA"),'Enter Company Names'!J41,"") -> 
A42: =IF(AND('Enter Company Names'!J42<>0,'Enter Company Names'!J42<>"NA"),'Enter Company Names'!J42,"") -> 
A43: =IF(AND('Enter Company Names'!J43<>0,'Enter Company Names'!J43<>"NA"),'Enter Company Names'!J43,"") -> 
A44: =IF(AND('Enter Company Names'!J44<>0,'Enter Company Names'!J44<>"NA"),'Enter Company Names'!J44,"") -> 
A45: =IF(AND('Enter Company Names'!J45<>0,'Enter Company Names'!J45<>"NA"),'Enter Company Names'!J45,"") -> 
A46: =IF(AND('Enter Company Names'!J46<>0,'Enter Company Names'!J46<>"NA"),'Enter Company Names'!J46,"") -> 
A47: =IF(AND('Enter Company Names'!J47<>0,'Enter Company Names'!J47<>"NA"),'Enter Company Names'!J47,"") -> 
A48: =IF(AND('Enter Company Names'!J48<>0,'Enter Company Names'!J48<>"NA"),'Enter Company Names'!J48,"") -> 
A49: =IF(AND('Enter Company Names'!J49<>0,'Enter Company Names'!J49<>"NA"),'Enter Company Names'!J49,"") -> 
A50: =IF(AND('Enter Company Names'!J50<>0,'Enter Company Names'!J50<>"NA"),'Enter Company Names'!J50,"") -> 
A51: =IF(AND('Enter Company Names'!J51<>0,'Enter Company Names'!J51<>"NA"),'Enter Company Names'!J51,"") -> 
A52: =IF(AND('Enter Company Names'!J52<>0,'Enter Company Names'!J52<>"NA"),'Enter Company Names'!J52,"") -> 
A53: =IF(AND('Enter Company Names'!J53<>0,'Enter Company Names'!J53<>"NA"),'Enter Company Names'!J53,"") -> 
A54: =IF(AND('Enter Company Names'!J54<>0,'Enter Company Names'!J54<>"NA"),'Enter Company Names'!J54,"") -> 
A55: =IF(AND('Enter Company Names'!J55<>0,'Enter Company Names'!J55<>"NA"),'Enter Company Names'!J55,"") -> 
A56: =IF(AND('Enter Company Names'!J56<>0,'Enter Company Names'!J56<>"NA"),'Enter Company Names'!J56,"") -> 
A57: =IF(AND('Enter Company Names'!J57<>0,'Enter Company Names'!J57<>"NA"),'Enter Company Names'!J57,"") -> 
A58: =IF(AND('Enter Company Names'!J58<>0,'Enter Company Names'!J58<>"NA"),'Enter Company Names'!J58,"") -> 
A59: =IF(AND('Enter Company Names'!J59<>0,'Enter Company Names'!J59<>"NA"),'Enter Company Names'!J59,"") -> 
A60: =IF(AND('Enter Company Names'!J60<>0,'Enter Company Names'!J60<>"NA"),'Enter Company Names'!J60,"") -> 
A61: =IF(AND('Enter Company Names'!J61<>0,'Enter Company Names'!J61<>"NA"),'Enter Company Names'!J61,"") -> 
A62: =IF(AND('Enter Company Names'!J62<>0,'Enter Company Names'!J62<>"NA"),'Enter Company Names'!J62,"") -> 
A63: =IF(AND('Enter Company Names'!J63<>0,'Enter Company Names'!J63<>"NA"),'Enter Company Names'!J63,"") -> 
A64: =IF(AND('Enter Company Names'!J64<>0,'Enter Company Names'!J64<>"NA"),'Enter Company Names'!J64,"") -> 
A65: =IF(AND('Enter Company Names'!J65<>0,'Enter Company Names'!J65<>"NA"),'Enter Company Names'!J65,"") -> 
A66: =IF(AND('Enter Company Names'!J66<>0,'Enter Company Names'!J66<>"NA"),'Enter Company Names'!J66,"") -> 
A67: =IF(AND('Enter Company Names'!J67<>0,'Enter Company Names'!J67<>"NA"),'Enter Company Names'!J67,"") -> 
A68: =IF(AND('Enter Company Names'!J68<>0,'Enter Company Names'!J68<>"NA"),'Enter Company Names'!J68,"") -> 
A69: =IF(AND('Enter Company Names'!J69<>0,'Enter Company Names'!J69<>"NA"),'Enter Company Names'!J69,"") -> 
A70: =IF(AND('Enter Company Names'!J70<>0,'Enter Company Names'!J70<>"NA"),'Enter Company Names'!J70,"") -> 
A71: =IF(AND('Enter Company Names'!J71<>0,'Enter Company Names'!J71<>"NA"),'Enter Company Names'!J71,"") -> 
A72: =IF(AND('Enter Company Names'!J72<>0,'Enter Company Names'!J72<>"NA"),'Enter Company Names'!J72,"") -> 
A73: =IF(AND('Enter Company Names'!J73<>0,'Enter Company Names'!J73<>"NA"),'Enter Company Names'!J73,"") -> 
A74: =IF(AND('Enter Company Names'!J74<>0,'Enter Company Names'!J74<>"NA"),'Enter Company Names'!J74,"") -> 
A75: =IF(AND('Enter Company Names'!J75<>0,'Enter Company Names'!J75<>"NA"),'Enter Company Names'!J75,"") -> 
A76: =IF(AND('Enter Company Names'!J76<>0,'Enter Company Names'!J76<>"NA"),'Enter Company Names'!J76,"") -> 
A77: =IF(AND('Enter Company Names'!J77<>0,'Enter Company Names'!J77<>"NA"),'Enter Company Names'!J77,"") -> 
A78: =IF(AND('Enter Company Names'!J78<>0,'Enter Company Names'!J78<>"NA"),'Enter Company Names'!J78,"") -> 
A79: =IF(AND('Enter Company Names'!J79<>0,'Enter Company Names'!J79<>"NA"),'Enter Company Names'!J79,"") -> 
A80: =IF(AND('Enter Company Names'!J80<>0,'Enter Company Names'!J80<>"NA"),'Enter Company Names'!J80,"") -> 
A81: =IF(AND('Enter Company Names'!J81<>0,'Enter Company Names'!J81<>"NA"),'Enter Company Names'!J81,"") -> 
A82: =IF(AND('Enter Company Names'!J82<>0,'Enter Company Names'!J82<>"NA"),'Enter Company Names'!J82,"") -> 
A83: =IF(AND('Enter Company Names'!J83<>0,'Enter Company Names'!J83<>"NA"),'Enter Company Names'!J83,"") -> 
A84: =IF(AND('Enter Company Names'!J84<>0,'Enter Company Names'!J84<>"NA"),'Enter Company Names'!J84,"") -> 
A85: =IF(AND('Enter Company Names'!J85<>0,'Enter Company Names'!J85<>"NA"),'Enter Company Names'!J85,"") -> 
A86: =IF(AND('Enter Company Names'!J86<>0,'Enter Company Names'!J86<>"NA"),'Enter Company Names'!J86,"") -> 
A87: =IF(AND('Enter Company Names'!J87<>0,'Enter Company Names'!J87<>"NA"),'Enter Company Names'!J87,"") -> 
A88: =IF(AND('Enter Company Names'!J88<>0,'Enter Company Names'!J88<>"NA"),'Enter Company Names'!J88,"") -> 
A89: =IF(AND('Enter Company Names'!J89<>0,'Enter Company Names'!J89<>"NA"),'Enter Company Names'!J89,"") -> 
A90: =IF(AND('Enter Company Names'!J90<>0,'Enter Company Names'!J90<>"NA"),'Enter Company Names'!J90,"") -> 
A91: =IF(AND('Enter Company Names'!J91<>0,'Enter Company Names'!J91<>"NA"),'Enter Company Names'!J91,"") -> 
A92: =IF(AND('Enter Company Names'!J92<>0,'Enter Company Names'!J92<>"NA"),'Enter Company Names'!J92,"") -> 
A93: =IF(AND('Enter Company Names'!J93<>0,'Enter Company Names'!J93<>"NA"),'Enter Company Names'!J93,"") -> 
A94: =IF(AND('Enter Company Names'!J94<>0,'Enter Company Names'!J94<>"NA"),'Enter Company Names'!J94,"") -> 
A95: =IF(AND('Enter Company Names'!J95<>0,'Enter Company Names'!J95<>"NA"),'Enter Company Names'!J95,"") -> 
A96: =IF(AND('Enter Company Names'!J96<>0,'Enter Company Names'!J96<>"NA"),'Enter Company Names'!J96,"") -> 
A97: =IF(AND('Enter Company Names'!J97<>0,'Enter Company Names'!J97<>"NA"),'Enter Company Names'!J97,"") -> 
A98: =IF(AND('Enter Company Names'!J98<>0,'Enter Company Names'!J98<>"NA"),'Enter Company Names'!J98,"") -> 
A99: =IF(AND('Enter Company Names'!J99<>0,'Enter Company Names'!J99<>"NA"),'Enter Company Names'!J99,"") -> 
A100: =IF(AND('Enter Company Names'!J100<>0,'Enter Company Names'!J100<>"NA"),'Enter Company Names'!J100,"") -> 
A101: =IF(AND('Enter Company Names'!J101<>0,'Enter Company Names'!J101<>"NA"),'Enter Company Names'!J101,"") -> 
A102: =IF(AND('Enter Company Names'!J102<>0,'Enter Company Names'!J102<>"NA"),'Enter Company Names'!J102,"") -> 
A103: =IF(AND('Enter Company Names'!J103<>0,'Enter Company Names'!J103<>"NA"),'Enter Company Names'!J103,"") -> 
A104: =IF(AND('Enter Company Names'!J104<>0,'Enter Company Names'!J104<>"NA"),'Enter Company Names'!J104,"") -> 
A105: =IF(AND('Enter Company Names'!J105<>0,'Enter Company Names'!J105<>"NA"),'Enter Company Names'!J105,"") -> 
A106: =IF(AND('Enter Company Names'!J106<>0,'Enter Company Names'!J106<>"NA"),'Enter Company Names'!J106,"") -> 
A107: =IF(AND('Enter Company Names'!J107<>0,'Enter Company Names'!J107<>"NA"),'Enter Company Names'!J107,"") -> 
A108: =IF(AND('Enter Company Names'!J108<>0,'Enter Company Names'!J108<>"NA"),'Enter Company Names'!J108,"") -> 
A109: =IF(AND('Enter Company Names'!J109<>0,'Enter Company Names'!J109<>"NA"),'Enter Company Names'!J109,"") -> 
A110: =IF(AND('Enter Company Names'!J110<>0,'Enter Company Names'!J110<>"NA"),'Enter Company Names'!J110,"") -> 
A111: =IF(AND('Enter Company Names'!J111<>0,'Enter Company Names'!J111<>"NA"),'Enter Company Names'!J111,"") -> 
A112: =IF(AND('Enter Company Names'!J112<>0,'Enter Company Names'!J112<>"NA"),'Enter Company Names'!J112,"") -> 
A113: =IF(AND('Enter Company Names'!J113<>0,'Enter Company Names'!J113<>"NA"),'Enter Company Names'!J113,"") -> 
A114: =IF(AND('Enter Company Names'!J114<>0,'Enter Company Names'!J114<>"NA"),'Enter Company Names'!J114,"") -> 
A115: =IF(AND('Enter Company Names'!J115<>0,'Enter Company Names'!J115<>"NA"),'Enter Company Names'!J115,"") -> 
A116: =IF(AND('Enter Company Names'!J116<>0,'Enter Company Names'!J116<>"NA"),'Enter Company Names'!J116,"") -> 
A117: =IF(AND('Enter Company Names'!J117<>0,'Enter Company Names'!J117<>"NA"),'Enter Company Names'!J117,"") -> 
A118: =IF(AND('Enter Company Names'!J118<>0,'Enter Company Names'!J118<>"NA"),'Enter Company Names'!J118,"") -> 
A119: =IF(AND('Enter Company Names'!J119<>0,'Enter Company Names'!J119<>"NA"),'Enter Company Names'!J119,"") -> 
A120: =IF(AND('Enter Company Names'!J120<>0,'Enter Company Names'!J120<>"NA"),'Enter Company Names'!J120,"") -> 
A121: =IF(AND('Enter Company Names'!J121<>0,'Enter Company Names'!J121<>"NA"),'Enter Company Names'!J121,"") -> 
A122: =IF(AND('Enter Company Names'!J122<>0,'Enter Company Names'!J122<>"NA"),'Enter Company Names'!J122,"") -> 
A123: =IF(AND('Enter Company Names'!J123<>0,'Enter Company Names'!J123<>"NA"),'Enter Company Names'!J123,"") -> 
A124: =IF(AND('Enter Company Names'!J124<>0,'Enter Company Names'!J124<>"NA"),'Enter Company Names'!J124,"") -> 
A125: =IF(AND('Enter Company Names'!J125<>0,'Enter Company Names'!J125<>"NA"),'Enter Company Names'!J125,"") -> 
A126: =IF(AND('Enter Company Names'!J126<>0,'Enter Company Names'!J126<>"NA"),'Enter Company Names'!J126,"") -> 
A127: =IF(AND('Enter Company Names'!J127<>0,'Enter Company Names'!J127<>"NA"),'Enter Company Names'!J127,"") -> 
A128: =IF(AND('Enter Company Names'!J128<>0,'Enter Company Names'!J128<>"NA"),'Enter Company Names'!J128,"") -> 
A129: =IF(AND('Enter Company Names'!J129<>0,'Enter Company Names'!J129<>"NA"),'Enter Company Names'!J129,"") -> 
A130: =IF(AND('Enter Company Names'!J130<>0,'Enter Company Names'!J130<>"NA"),'Enter Company Names'!J130,"") -> 
A131: =IF(AND('Enter Company Names'!J131<>0,'Enter Company Names'!J131<>"NA"),'Enter Company Names'!J131,"") -> 
A132: =IF(AND('Enter Company Names'!J132<>0,'Enter Company Names'!J132<>"NA"),'Enter Company Names'!J132,"") -> 
A133: =IF(AND('Enter Company Names'!J133<>0,'Enter Company Names'!J133<>"NA"),'Enter Company Names'!J133,"") -> 
A134: =IF(AND('Enter Company Names'!J134<>0,'Enter Company Names'!J134<>"NA"),'Enter Company Names'!J134,"") -> 
A135: =IF(AND('Enter Company Names'!J135<>0,'Enter Company Names'!J135<>"NA"),'Enter Company Names'!J135,"") -> 
A136: =IF(AND('Enter Company Names'!J136<>0,'Enter Company Names'!J136<>"NA"),'Enter Company Names'!J136,"") -> 
A137: =IF(AND('Enter Company Names'!J137<>0,'Enter Company Names'!J137<>"NA"),'Enter Company Names'!J137,"") -> 
A138: =IF(AND('Enter Company Names'!J138<>0,'Enter Company Names'!J138<>"NA"),'Enter Company Names'!J138,"") -> 
A139: =IF(AND('Enter Company Names'!J139<>0,'Enter Company Names'!J139<>"NA"),'Enter Company Names'!J139,"") -> 
A140: =IF(AND('Enter Company Names'!J140<>0,'Enter Company Names'!J140<>"NA"),'Enter Company Names'!J140,"") -> 
A141: =IF(AND('Enter Company Names'!J141<>0,'Enter Company Names'!J141<>"NA"),'Enter Company Names'!J141,"") -> 
A142: =IF(AND('Enter Company Names'!J142<>0,'Enter Company Names'!J142<>"NA"),'Enter Company Names'!J142,"") -> 
A143: =IF(AND('Enter Company Names'!J143<>0,'Enter Company Names'!J143<>"NA"),'Enter Company Names'!J143,"") -> 
A144: =IF(AND('Enter Company Names'!J144<>0,'Enter Company Names'!J144<>"NA"),'Enter Company Names'!J144,"") -> 
A145: =IF(AND('Enter Company Names'!J145<>0,'Enter Company Names'!J145<>"NA"),'Enter Company Names'!J145,"") -> 
A146: =IF(AND('Enter Company Names'!J146<>0,'Enter Company Names'!J146<>"NA"),'Enter Company Names'!J146,"") -> 
A147: =IF(AND('Enter Company Names'!J147<>0,'Enter Company Names'!J147<>"NA"),'Enter Company Names'!J147,"") -> 
A148: =IF(AND('Enter Company Names'!J148<>0,'Enter Company Names'!J148<>"NA"),'Enter Company Names'!J148,"") -> 
A149: =IF(AND('Enter Company Names'!J149<>0,'Enter Company Names'!J149<>"NA"),'Enter Company Names'!J149,"") -> 
A150: =IF(AND('Enter Company Names'!J150<>0,'Enter Company Names'!J150<>"NA"),'Enter Company Names'!J150,"") -> 
A151: =IF(AND('Enter Company Names'!J151<>0,'Enter Company Names'!J151<>"NA"),'Enter Company Names'!J151,"") -> 
A152: =IF(AND('Enter Company Names'!J152<>0,'Enter Company Names'!J152<>"NA"),'Enter Company Names'!J152,"") -> 
A153: =IF(AND('Enter Company Names'!J153<>0,'Enter Company Names'!J153<>"NA"),'Enter Company Names'!J153,"") -> 
A154: =IF(AND('Enter Company Names'!J154<>0,'Enter Company Names'!J154<>"NA"),'Enter Company Names'!J154,"") -> 
A155: =IF(AND('Enter Company Names'!J155<>0,'Enter Company Names'!J155<>"NA"),'Enter Company Names'!J155,"") -> 
A156: =IF(AND('Enter Company Names'!J156<>0,'Enter Company Names'!J156<>"NA"),'Enter Company Names'!J156,"") -> 
A157: =IF(AND('Enter Company Names'!J157<>0,'Enter Company Names'!J157<>"NA"),'Enter Company Names'!J157,"") -> 
A158: =IF(AND('Enter Company Names'!J158<>0,'Enter Company Names'!J158<>"NA"),'Enter Company Names'!J158,"") -> 
A159: =IF(AND('Enter Company Names'!J159<>0,'Enter Company Names'!J159<>"NA"),'Enter Company Names'!J159,"") -> 
A160: =IF(AND('Enter Company Names'!J160<>0,'Enter Company Names'!J160<>"NA"),'Enter Company Names'!J160,"") -> 
A161: =IF(AND('Enter Company Names'!J161<>0,'Enter Company Names'!J161<>"NA"),'Enter Company Names'!J161,"") -> 
A162: =IF(AND('Enter Company Names'!J162<>0,'Enter Company Names'!J162<>"NA"),'Enter Company Names'!J162,"") -> 
A163: =IF(AND('Enter Company Names'!J163<>0,'Enter Company Names'!J163<>"NA"),'Enter Company Names'!J163,"") -> 
A164: =IF(AND('Enter Company Names'!J164<>0,'Enter Company Names'!J164<>"NA"),'Enter Company Names'!J164,"") -> 
A165: =IF(AND('Enter Company Names'!J165<>0,'Enter Company Names'!J165<>"NA"),'Enter Company Names'!J165,"") -> 
A166: =IF(AND('Enter Company Names'!J166<>0,'Enter Company Names'!J166<>"NA"),'Enter Company Names'!J166,"") -> 
A167: =IF(AND('Enter Company Names'!J167<>0,'Enter Company Names'!J167<>"NA"),'Enter Company Names'!J167,"") -> 
A168: =IF(AND('Enter Company Names'!J168<>0,'Enter Company Names'!J168<>"NA"),'Enter Company Names'!J168,"") -> 
A169: =IF(AND('Enter Company Names'!J169<>0,'Enter Company Names'!J169<>"NA"),'Enter Company Names'!J169,"") -> 
A170: =IF(AND('Enter Company Names'!J170<>0,'Enter Company Names'!J170<>"NA"),'Enter Company Names'!J170,"") -> 
A171: =IF(AND('Enter Company Names'!J171<>0,'Enter Company Names'!J171<>"NA"),'Enter Company Names'!J171,"") -> 
A172: =IF(AND('Enter Company Names'!J172<>0,'Enter Company Names'!J172<>"NA"),'Enter Company Names'!J172,"") -> 
A173: =IF(AND('Enter Company Names'!J173<>0,'Enter Company Names'!J173<>"NA"),'Enter Company Names'!J173,"") -> 
A174: =IF(AND('Enter Company Names'!J174<>0,'Enter Company Names'!J174<>"NA"),'Enter Company Names'!J174,"") -> 
A175: =IF(AND('Enter Company Names'!J175<>0,'Enter Company Names'!J175<>"NA"),'Enter Company Names'!J175,"") -> 
A176: =IF(AND('Enter Company Names'!J176<>0,'Enter Company Names'!J176<>"NA"),'Enter Company Names'!J176,"") -> 
A177: =IF(AND('Enter Company Names'!J177<>0,'Enter Company Names'!J177<>"NA"),'Enter Company Names'!J177,"") -> 
A178: =IF(AND('Enter Company Names'!J178<>0,'Enter Company Names'!J178<>"NA"),'Enter Company Names'!J178,"") -> 
A179: =IF(AND('Enter Company Names'!J179<>0,'Enter Company Names'!J179<>"NA"),'Enter Company Names'!J179,"") -> 
A180: =IF(AND('Enter Company Names'!J180<>0,'Enter Company Names'!J180<>"NA"),'Enter Company Names'!J180,"") -> 
A181: =IF(AND('Enter Company Names'!J181<>0,'Enter Company Names'!J181<>"NA"),'Enter Company Names'!J181,"") -> 
A182: =IF(AND('Enter Company Names'!J182<>0,'Enter Company Names'!J182<>"NA"),'Enter Company Names'!J182,"") -> 
A183: =IF(AND('Enter Company Names'!J183<>0,'Enter Company Names'!J183<>"NA"),'Enter Company Names'!J183,"") -> 
A184: =IF(AND('Enter Company Names'!J184<>0,'Enter Company Names'!J184<>"NA"),'Enter Company Names'!J184,"") -> 
A185: =IF(AND('Enter Company Names'!J185<>0,'Enter Company Names'!J185<>"NA"),'Enter Company Names'!J185,"") -> 
A186: =IF(AND('Enter Company Names'!J186<>0,'Enter Company Names'!J186<>"NA"),'Enter Company Names'!J186,"") -> 
A187: =IF(AND('Enter Company Names'!J187<>0,'Enter Company Names'!J187<>"NA"),'Enter Company Names'!J187,"") -> 
A188: =IF(AND('Enter Company Names'!J188<>0,'Enter Company Names'!J188<>"NA"),'Enter Company Names'!J188,"") -> 
A189: =IF(AND('Enter Company Names'!J189<>0,'Enter Company Names'!J189<>"NA"),'Enter Company Names'!J189,"") -> 
A190: =IF(AND('Enter Company Names'!J190<>0,'Enter Company Names'!J190<>"NA"),'Enter Company Names'!J190,"") -> 
A191: =IF(AND('Enter Company Names'!J191<>0,'Enter Company Names'!J191<>"NA"),'Enter Company Names'!J191,"") -> 
A192: =IF(AND('Enter Company Names'!J192<>0,'Enter Company Names'!J192<>"NA"),'Enter Company Names'!J192,"") -> 
A193: =IF(AND('Enter Company Names'!J193<>0,'Enter Company Names'!J193<>"NA"),'Enter Company Names'!J193,"") -> 
A194: =IF(AND('Enter Company Names'!J194<>0,'Enter Company Names'!J194<>"NA"),'Enter Company Names'!J194,"") -> 
A195: =IF(AND('Enter Company Names'!J195<>0,'Enter Company Names'!J195<>"NA"),'Enter Company Names'!J195,"") -> 
A196: =IF(AND('Enter Company Names'!J196<>0,'Enter Company Names'!J196<>"NA"),'Enter Company Names'!J196,"") -> 
A197: =IF(AND('Enter Company Names'!J197<>0,'Enter Company Names'!J197<>"NA"),'Enter Company Names'!J197,"") -> 
A198: =IF(AND('Enter Company Names'!J198<>0,'Enter Company Names'!J198<>"NA"),'Enter Company Names'!J198,"") -> 
A199: =IF(AND('Enter Company Names'!J199<>0,'Enter Company Names'!J199<>"NA"),'Enter Company Names'!J199,"") -> 
A200: =IF(AND('Enter Company Names'!J200<>0,'Enter Company Names'!J200<>"NA"),'Enter Company Names'!J200,"") -> 
A201: =IF(AND('Enter Company Names'!J201<>0,'Enter Company Names'!J201<>"NA"),'Enter Company Names'!J201,"") -> 
A202: =IF(AND('Enter Company Names'!J202<>0,'Enter Company Names'!J202<>"NA"),'Enter Company Names'!J202,"") -> 
A203: =IF(AND('Enter Company Names'!J203<>0,'Enter Company Names'!J203<>"NA"),'Enter Company Names'!J203,"") -> 
... 297 more rows

Sheet SASB Score Overview
A4: Instructions for SASB-Auto Industry Calculator (Continued)
A5: 1. The company names will pull from Enter Company Names sheet.
A6: 2. Click "Calculate" to update CSRHub scores applied to SASB-Auto indutry topics.
A9: ="For "&A15&"" -> For Tesla Motors, Inc. | C9: Materials Efficiency & Recycling | D9: Product Safety | E9: Labor Practices (Labor Relations) | F9: Fuel Economy and Use-phase Emissions | G9: Materials Sourcing (including critical materials)
A10: Average Rating | C10: =AVERAGEIF(C16:C215,"<>0") -> 60.52665 | D10: =AVERAGEIF(D16:D215,"<>0") -> 57.3912 | E10: =AVERAGEIF(E16:E215,"<>0") -> 56.90375 | F10: =AVERAGEIF(F16:F215,"<>0") -> 59.19735 | G10: =AVERAGEIF(G16:G215,"<>0") -> 59.20795
A11: Best Rating | C11: =MAX(C16:C212) -> 64.02 | D11: =MAX(D16:D212) -> 74.4875 | E11: =MAX(E16:E212) -> 74.3254 | F11: 61.733 | G11: 61.9445
A12: Worst Rating | C12: =MIN(IF(C16:C212>0,C16:C212)) -> 51.401 | D12: =MIN(IF(D16:D212>0,D16:D212)) -> 51.4545 | E12: =MIN(IF(E16:E212>0,E16:E212)) -> 50.8521 | F12: =MIN(IF(F16:F212>0,F16:F212)) -> 51.183 | G12: =MIN(IF(G16:G212>0,G16:G212)) -> 54.933
A14: Company Name | C14: ='SASB Mapping'!$B15 -> Materials Efficiency and Recycling | D14: ='SASB Mapping'!$B16 -> Product Safety | E14: ='SASB Mapping'!$B17 -> Labor Relations | F14: ='SASB Mapping'!$B18 -> Fuel Economy and Use-phase Emissions | G14: ='SASB Mapping'!$B19 -> Materials Sourcing (including critical materials)
A15: ='CSRHub Ratings'!B15 -> Tesla Motors, Inc. | C15: =SUMPRODUCT('CSRHub Ratings'!$C15:$N15,'SASB Mapping'!$C$15:'SASB Mapping'!$N$15) -> 49.657 | D15: =SUMPRODUCT('CSRHub Ratings'!$C15:$N15,'SASB Mapping'!$C$16:'SASB Mapping'!$N$16) -> 48.622 | E15: =SUMPRODUCT('CSRHub Ratings'!$C15:$N15,'SASB Mapping'!$C$17:'SASB Mapping'!$N$17) -> 45.0184 | F15: =SUMPRODUCT('CSRHub Ratings'!$C15:$N15,'SASB Mapping'!$C$18:'SASB Mapping'!$N$18) -> 50.12 | G15: =SUMPRODUCT('CSRHub Ratings'!$C15:$N15,'SASB Mapping'!$C$19:'SASB Mapping'!$N$19) -> 49.1455
A16: ='CSRHub Ratings'!B16 -> Audi AG | C16: =SUMPRODUCT('CSRHub Ratings'!$C16:$N16,'SASB Mapping'!$C$15:'SASB Mapping'!$N$15) -> 59.949 | D16: =SUMPRODUCT('CSRHub Ratings'!$C16:$N16,'SASB Mapping'!$C$16:'SASB Mapping'!$N$16) -> 74.4875 | E16: =SUMPRODUCT('CSRHub Ratings'!$C16:$N16,'SASB Mapping'!$C$17:'SASB Mapping'!$N$17) -> 74.3254 | F16: =SUMPRODUCT('CSRHub Ratings'!$C16:$N16,'SASB Mapping'!$C$18:'SASB Mapping'!$N$18) -> 61.733 | G16: =SUMPRODUCT('CSRHub Ratings'!$C16:$N16,'SASB Mapping'!$C$19:'SASB Mapping'!$N$19) -> 58.349
A17: ='CSRHub Ratings'!B17 -> BMW | C17: =SUMPRODUCT('CSRHub Ratings'!$C17:$N17,'SASB Mapping'!$C$15:'SASB Mapping'!$N$15) -> 61.806 | D17: =SUMPRODUCT('CSRHub Ratings'!$C17:$N17,'SASB Mapping'!$C$16:'SASB Mapping'!$N$16) -> 55.9205 | E17: =SUMPRODUCT('CSRHub Ratings'!$C17:$N17,'SASB Mapping'!$C$17:'SASB Mapping'!$N$17) -> 55.1913 | F17: =SUMPRODUCT('CSRHub Ratings'!$C17:$N17,'SASB Mapping'!$C$18:'SASB Mapping'!$N$18) -> 60.4625 | G17: =SUMPRODUCT('CSRHub Ratings'!$C17:$N17,'SASB Mapping'!$C$19:'SASB Mapping'!$N$19) -> 59.626
A18: ='CSRHub Ratings'!B18 -> Ford Motor Company | C18: =SUMPRODUCT('CSRHub Ratings'!$C18:$N18,'SASB Mapping'!$C$15:'SASB Mapping'!$N$15) -> 62.6485 | D18: =SUMPRODUCT('CSRHub Ratings'!$C18:$N18,'SASB Mapping'!$C$16:'SASB Mapping'!$N$16) -> 54.3765 | E18: =SUMPRODUCT('CSRHub Ratings'!$C18:$N18,'SASB Mapping'!$C$17:'SASB Mapping'!$N$17) -> 54.6314 | F18: =SUMPRODUCT('CSRHub Ratings'!$C18:$N18,'SASB Mapping'!$C$18:'SASB Mapping'!$N$18) -> 61.31 | G18: =SUMPRODUCT('CSRHub Ratings'!$C18:$N18,'SASB Mapping'!$C$19:'SASB Mapping'!$N$19) -> 61.5475
A19: ='CSRHub Ratings'!B19 -> HONDA MOTOR CO.,LTD. | C19: =SUMPRODUCT('CSRHub Ratings'!$C19:$N19,'SASB Mapping'!$C$15:'SASB Mapping'!$N$15) -> 64.02 | D19: =SUMPRODUCT('CSRHub Ratings'!$C19:$N19,'SASB Mapping'!$C$16:'SASB Mapping'!$N$16) -> 57.2265 | E19: =SUMPRODUCT('CSRHub Ratings'!$C19:$N19,'SASB Mapping'!$C$17:'SASB Mapping'!$N$17) -> 56.9001 | F19: =SUMPRODUCT('CSRHub Ratings'!$C19:$N19,'SASB Mapping'!$C$18:'SASB Mapping'!$N$18) -> 60.9465 | G19: =SUMPRODUCT('CSRHub Ratings'!$C19:$N19,'SASB Mapping'!$C$19:'SASB Mapping'!$N$19) -> 61.9445
A20: ='CSRHub Ratings'!B20 -> General Motors Corporation (GM) | C20: =SUMPRODUCT('CSRHub Ratings'!$C20:$N20,'SASB Mapping'!$C$15:'SASB Mapping'!$N$15) -> 59.5385 | D20: =SUMPRODUCT('CSRHub Ratings'!$C20:$N20,'SASB Mapping'!$C$16:'SASB Mapping'!$N$16) -> 55.2405 | E20: =SUMPRODUCT('CSRHub Ratings'!$C20:$N20,'SASB Mapping'!$C$17:'SASB Mapping'!$N$17) -> 56.4896 | F20: =SUMPRODUCT('CSRHub Ratings'!$C20:$N20,'SASB Mapping'!$C$18:'SASB Mapping'!$N$18) -> 58.144 | G20: =SUMPRODUCT('CSRHub Ratings'!$C20:$N20,'SASB Mapping'!$C$19:'SASB Mapping'!$N$19) -> 58.5735
A21: ='CSRHub Ratings'!B21 -> Hyundai Motor Co. | C21: =SUMPRODUCT('CSRHub Ratings'!$C21:$N21,'SASB Mapping'!$C$15:'SASB Mapping'!$N$15) -> 63.692 | D21: =SUMPRODUCT('CSRHub Ratings'!$C21:$N21,'SASB Mapping'!$C$16:'SASB Mapping'!$N$16) -> 58.5095 | E21: =SUMPRODUCT('CSRHub Ratings'!$C21:$N21,'SASB Mapping'!$C$17:'SASB Mapping'!$N$17) -> 56.9057 | F21: =SUMPRODUCT('CSRHub Ratings'!$C21:$N21,'SASB Mapping'!$C$18:'SASB Mapping'!$N$18) -> 60.793 | G21: =SUMPRODUCT('CSRHub Ratings'!$C21:$N21,'SASB Mapping'!$C$19:'SASB Mapping'!$N$19) -> 61.0855
A22: ='CSRHub Ratings'!B22 -> Porsche AG | C22: =SUMPRODUCT('CSRHub Ratings'!$C22:$N22,'SASB Mapping'!$C$15:'SASB Mapping'!$N$15) -> 51.401 | D22: =SUMPRODUCT('CSRHub Ratings'!$C22:$N22,'SASB Mapping'!$C$16:'SASB Mapping'!$N$16) -> 51.4545 | E22: =SUMPRODUCT('CSRHub Ratings'!$C22:$N22,'SASB Mapping'!$C$17:'SASB Mapping'!$N$17) -> 51.9384 | F22: =SUMPRODUCT('CSRHub Ratings'!$C22:$N22,'SASB Mapping'!$C$18:'SASB Mapping'!$N$18) -> 51.183 | G22: =SUMPRODUCT('CSRHub Ratings'!$C22:$N22,'SASB Mapping'!$C$19:'SASB Mapping'!$N$19) -> 54.933
A23: ='CSRHub Ratings'!B23 -> Volkswagen AG | C23: =SUMPRODUCT('CSRHub Ratings'!$C23:$N23,'SASB Mapping'!$C$15:'SASB Mapping'!$N$15) -> 59.7035 | D23: =SUMPRODUCT('CSRHub Ratings'!$C23:$N23,'SASB Mapping'!$C$16:'SASB Mapping'!$N$16) -> 55.308 | E23: =SUMPRODUCT('CSRHub Ratings'!$C23:$N23,'SASB Mapping'!$C$17:'SASB Mapping'!$N$17) -> 50.8521 | F23: =SUMPRODUCT('CSRHub Ratings'!$C23:$N23,'SASB Mapping'!$C$18:'SASB Mapping'!$N$18) -> 57.4325 | G23: =SUMPRODUCT('CSRHub Ratings'!$C23:$N23,'SASB Mapping'!$C$19:'SASB Mapping'!$N$19) -> 56.796
A24: ='CSRHub Ratings'!B24 -> SUBARU CORPORATION | C24: =SUMPRODUCT('CSRHub Ratings'!$C24:$N24,'SASB Mapping'!$C$15:'SASB Mapping'!$N$15) -> 59.43 | D24: =SUMPRODUCT('CSRHub Ratings'!$C24:$N24,'SASB Mapping'!$C$16:'SASB Mapping'!$N$16) -> 55.078 | E24: =SUMPRODUCT('CSRHub Ratings'!$C24:$N24,'SASB Mapping'!$C$17:'SASB Mapping'!$N$17) -> 55.8803 | F24: =SUMPRODUCT('CSRHub Ratings'!$C24:$N24,'SASB Mapping'!$C$18:'SASB Mapping'!$N$18) -> 58.859 | G24: =SUMPRODUCT('CSRHub Ratings'!$C24:$N24,'SASB Mapping'!$C$19:'SASB Mapping'!$N$19) -> 59.364
A25: ='CSRHub Ratings'!B25 -> TOYOTA MOTOR CORPORATION | C25: =SUMPRODUCT('CSRHub Ratings'!$C25:$N25,'SASB Mapping'!$C$15:'SASB Mapping'!$N$15) -> 63.078 | D25: =SUMPRODUCT('CSRHub Ratings'!$C25:$N25,'SASB Mapping'!$C$16:'SASB Mapping'!$N$16) -> 56.3105 | E25: =SUMPRODUCT('CSRHub Ratings'!$C25:$N25,'SASB Mapping'!$C$17:'SASB Mapping'!$N$17) -> 55.9232 | F25: =SUMPRODUCT('CSRHub Ratings'!$C25:$N25,'SASB Mapping'!$C$18:'SASB Mapping'!$N$18) -> 61.11 | G25: =SUMPRODUCT('CSRHub Ratings'!$C25:$N25,'SASB Mapping'!$C$19:'SASB Mapping'!$N$19) -> 59.8605
A26: ='CSRHub Ratings'!A26 -> 
A27: ='CSRHub Ratings'!A27 -> 
A28: ='CSRHub Ratings'!A28 -> 
A29: ='CSRHub Ratings'!A29 -> 
A30: ='CSRHub Ratings'!A30 -> 
A31: ='CSRHub Ratings'!A31 -> 
A32: ='CSRHub Ratings'!A32 -> 
A33: ='CSRHub Ratings'!A33 -> 
A34: ='CSRHub Ratings'!A34 -> 
A35: ='CSRHub Ratings'!A35 -> 
A36: ='CSRHub Ratings'!A36 -> 
A37: ='CSRHub Ratings'!A37 -> 
A38: ='CSRHub Ratings'!A38 -> 
A39: ='CSRHub Ratings'!A39 -> 
A40: ='CSRHub Ratings'!A40 -> 
A41: ='CSRHub Ratings'!A41 -> 
A42: ='CSRHub Ratings'!A42 -> 
A43: ='CSRHub Ratings'!A43 -> 
A44: ='CSRHub Ratings'!A44 -> 
A45: ='CSRHub Ratings'!A45 -> 
A46: ='CSRHub Ratings'!A46 -> 
A47: ='CSRHub Ratings'!A47 -> 
A48: ='CSRHub Ratings'!A48 -> 
A49: ='CSRHub Ratings'!A49 -> 
A50: ='CSRHub Ratings'!A50 -> 
A51: ='CSRHub Ratings'!A51 -> 
A52: ='CSRHub Ratings'!A52 -> 
A53: ='CSRHub Ratings'!A53 -> 
A54: ='CSRHub Ratings'!A54 -> 
A55: ='CSRHub Ratings'!A55 -> 
A56: ='CSRHub Ratings'!A56 -> 
A57: ='CSRHub Ratings'!A57 -> 
A58: ='CSRHub Ratings'!A58 -> 
A59: ='CSRHub Ratings'!A59 -> 
A60: ='CSRHub Ratings'!A60 -> 
A61: ='CSRHub Ratings'!A61 -> 
A62: ='CSRHub Ratings'!A62 -> 
A63: ='CSRHub Ratings'!A63 -> 
A64: ='CSRHub Ratings'!A64 -> 
A65: ='CSRHub Ratings'!A65 -> 
A66: ='CSRHub Ratings'!A66 -> 
A67: ='CSRHub Ratings'!A67 -> 
A68: ='CSRHub Ratings'!A68 -> 
A69: ='CSRHub Ratings'!A69 -> 
A70: ='CSRHub Ratings'!A70 -> 
A71: ='CSRHub Ratings'!A71 -> 
A72: ='CSRHub Ratings'!A72 -> 
A73: ='CSRHub Ratings'!A73 -> 
A74: ='CSRHub Ratings'!A74 -> 
A75: ='CSRHub Ratings'!A75 -> 
A76: ='CSRHub Ratings'!A76 -> 
A77: ='CSRHub Ratings'!A77 -> 
A78: ='CSRHub Ratings'!A78 -> 
A79: ='CSRHub Ratings'!A79 -> 
A80: ='CSRHub Ratings'!A80 -> 
A81: ='CSRHub Ratings'!A81 -> 
A82: ='CSRHub Ratings'!A82 -> 
A83: ='CSRHub Ratings'!A83 -> 
A84: ='CSRHub Ratings'!A84 -> 
A85: ='CSRHub Ratings'!A85 -> 
A86: ='CSRHub Ratings'!A86 -> 
A87: ='CSRHub Ratings'!A87 -> 
A88: ='CSRHub Ratings'!A88 -> 
A89: ='CSRHub Ratings'!A89 -> 
A90: ='CSRHub Ratings'!A90 -> 
A91: ='CSRHub Ratings'!A91 -> 
A92: ='CSRHub Ratings'!A92 -> 
A93: ='CSRHub Ratings'!A93 -> 
A94: ='CSRHub Ratings'!A94 -> 
A95: ='CSRHub Ratings'!A95 -> 
A96: ='CSRHub Ratings'!A96 -> 
A97: ='CSRHub Ratings'!A97 -> 
A98: ='CSRHub Ratings'!A98 -> 
A99: ='CSRHub Ratings'!A99 -> 
A100: ='CSRHub Ratings'!A100 -> 
A101: ='CSRHub Ratings'!A101 -> 
A102: ='CSRHub Ratings'!A102 -> 
A103: ='CSRHub Ratings'!A103 -> 
A104: ='CSRHub Ratings'!A104 -> 
A105: ='CSRHub Ratings'!A105 -> 
A106: ='CSRHub Ratings'!A106 -> 
A107: ='CSRHub Ratings'!A107 -> 
A108: ='CSRHub Ratings'!A108 -> 
A109: ='CSRHub Ratings'!A109 -> 
A110: ='CSRHub Ratings'!A110 -> 
A111: ='CSRHub Ratings'!A111 -> 
A112: ='CSRHub Ratings'!A112 -> 
A113: ='CSRHub Ratings'!A113 -> 
A114: ='CSRHub Ratings'!A114 -> 
A115: ='CSRHub Ratings'!A115 -> 
A116: ='CSRHub Ratings'!A116 -> 
A117: ='CSRHub Ratings'!A117 -> 
A118: ='CSRHub Ratings'!A118 -> 
A119: ='CSRHub Ratings'!A119 -> 
A120: ='CSRHub Ratings'!A120 -> 
A121: ='CSRHub Ratings'!A121 -> 
A122: ='CSRHub Ratings'!A122 -> 
A123: ='CSRHub Ratings'!A123 -> 
A124: ='CSRHub Ratings'!A124 -> 
A125: ='CSRHub Ratings'!A125 -> 
A126: ='CSRHub Ratings'!A126 -> 
A127: ='CSRHub Ratings'!A127 -> 
A128: ='CSRHub Ratings'!A128 -> 
A129: ='CSRHub Ratings'!A129 -> 
A130: ='CSRHub Ratings'!A130 -> 
A131: ='CSRHub Ratings'!A131 -> 
A132: ='CSRHub Ratings'!A132 -> 
A133: ='CSRHub Ratings'!A133 -> 
A134: ='CSRHub Ratings'!A134 -> 
A135: ='CSRHub Ratings'!A135 -> 
A136: ='CSRHub Ratings'!A136 -> 
A137: ='CSRHub Ratings'!A137 -> 
A138: ='CSRHub Ratings'!A138 -> 
A139: ='CSRHub Ratings'!A139 -> 
A140: ='CSRHub Ratings'!A140 -> 
A141: ='CSRHub Ratings'!A141 -> 
A142: ='CSRHub Ratings'!A142 -> 
A143: ='CSRHub Ratings'!A143 -> 
A144: ='CSRHub Ratings'!A144 -> 
A145: ='CSRHub Ratings'!A145 -> 
A146: ='CSRHub Ratings'!A146 -> 
A147: ='CSRHub Ratings'!A147 -> 
A148: ='CSRHub Ratings'!A148 -> 
A149: ='CSRHub Ratings'!A149 -> 
A150: ='CSRHub Ratings'!A150 -> 
A151: ='CSRHub Ratings'!A151 -> 
A152: ='CSRHub Ratings'!A152 -> 
A153: ='CSRHub Ratings'!A153 -> 
A154: ='CSRHub Ratings'!A154 -> 
A155: ='CSRHub Ratings'!A155 -> 
A156: ='CSRHub Ratings'!A156 -> 
A157: ='CSRHub Ratings'!A157 -> 
A158: ='CSRHub Ratings'!A158 -> 
A159: ='CSRHub Ratings'!A159 -> 
A160: ='CSRHub Ratings'!A160 -> 
A161: ='CSRHub Ratings'!A161 -> 
A162: ='CSRHub Ratings'!A162 -> 
A163: ='CSRHub Ratings'!A163 -> 
A164: ='CSRHub Ratings'!A164 -> 
A165: ='CSRHub Ratings'!A165 -> 
A166: ='CSRHub Ratings'!A166 -> 
A167: ='CSRHub Ratings'!A167 -> 
A168: ='CSRHub Ratings'!A168 -> 
A169: ='CSRHub Ratings'!A169 -> 
A170: ='CSRHub Ratings'!A170 -> 
A171: ='CSRHub Ratings'!A171 -> 
A172: ='CSRHub Ratings'!A172 -> 
A173: ='CSRHub Ratings'!A173 -> 
A174: ='CSRHub Ratings'!A174 -> 
A175: ='CSRHub Ratings'!A175 -> 
A176: ='CSRHub Ratings'!A176 -> 
A177: ='CSRHub Ratings'!A177 -> 
A178: ='CSRHub Ratings'!A178 -> 
A179: ='CSRHub Ratings'!A179 -> 
A180: ='CSRHub Ratings'!A180 -> 
A181: ='CSRHub Ratings'!A181 -> 
A182: ='CSRHub Ratings'!A182 -> 
A183: ='CSRHub Ratings'!A183 -> 
A184: ='CSRHub Ratings'!A184 -> 
A185: ='CSRHub Ratings'!A185 -> 
A186: ='CSRHub Ratings'!A186 -> 
A187: ='CSRHub Ratings'!A187 -> 
A188: ='CSRHub Ratings'!A188 -> 
A189: ='CSRHub Ratings'!A189 -> 
A190: ='CSRHub Ratings'!A190 -> 
A191: ='CSRHub Ratings'!A191 -> 
A192: ='CSRHub Ratings'!A192 -> 
A193: ='CSRHub Ratings'!A193 -> 
A194: ='CSRHub Ratings'!A194 -> 
A195: ='CSRHub Ratings'!A195 -> 
A196: ='CSRHub Ratings'!A196 -> 
A197: ='CSRHub Ratings'!A197 -> 
A198: ='CSRHub Ratings'!A198 -> 
A199: ='CSRHub Ratings'!A199 -> 
A200: ='CSRHub Ratings'!A200 -> 
A201: ='CSRHub Ratings'!A201 -> 
A202: ='CSRHub Ratings'!A202 -> 
A203: ='CSRHub Ratings'!A203 -> 
A204: ='CSRHub Ratings'!A204 -> 
A205: ='CSRHub Ratings'!A205 -> 
A206: ='CSRHub Ratings'!A206 -> 
... 224 more rows

Sheet SASB Mapping
B7: CSRHub SASB - Auto Industry Mapping
B8: Below is a mapping of CSRHub data to SASB-Auto Industry. The model was developed by our partner Valutus, under the title "Materiality Matters." You can learn more about Valutus at valutus.com.
B11: Reach out to CSRHub to request a custom mapping.
B14: SASB Area Mapping for Auto Industry to CSRHub Scores | C14: Community Dev & Philanthropy | D14: Human Rights & Supply Chain | E14: Product | F14: Compensation & Benefits | G14: Diversity & Labor Rights | H14: Training, Health & Safety | I14: Energy & Climate Change | J14: Environment Policy & Reporting | K14: Resource Management | L14: Board | M14: Leadership Ethics | N14: Transparency & Reporting
B15: Materials Efficiency and Recycling | E15: 0.2 | J15: 0.1 | K15: 0.6 | M15: 0.05 | N15: 0.05
B16: Product Safety | E16: 0.75 | H16: 0.15 | K16: 0.05 | N16: 0.05
B17: Labor Relations | F17: 0.31 | G17: 0.31 | H17: 0.31 | M17: 0.04 | N17: 0.03
B18: Fuel Economy and Use-phase Emissions | C18: 0.05 | E18: 0.15 | I18: 0.35 | J18: 0.35 | N18: 0.1
B19: Materials Sourcing (including critical materials) | D19: 0.65 | J19: 0.1 | L19: 0.05 | M19: 0.1 | N19: 0.1
